fUSD/lending_fUSD_20240826
["ID","MTS","AMOUNT","RATE_DAILY","PERIOD"]
[336084336,1724693470548,-529.45,0.00010958,2]
[336084337,1724693470562,-2356.52,0.00010958,2]
[336084338,1724693470577,-1317.9,0.00010958,2]
[336084339,1724693470592,-529.45,0.00010958,2]
[336084340,1724693470607,-2356.52,0.00010958,2]
[336084341,1724693470622,-529.45,0.00010958,2]
[336084342,1724693470638,-1317.9,0.00010958,2]
[336084343,1724693470652,-2356.52,0.00010958,2]
[336084344,1724693470665,-529.45,0.00010958,2]
[336084345,1724693470680,-2356.52,0.00010958,2]
[336084346,1724693470694,-529.45,0.00010958,2]
[336084347,1724693470706,-3259.27,0.00010958,2]
[336084348,1724693470721,-2356.52,0.00010958,2]
[336084349,1724693470741,-529.45,0.00010958,2]
[336084350,1724693470755,-3259.27,0.00010958,2]
[336084351,1724693470769,-2356.52,0.00010958,2]
[336084352,1724693470785,-529.45,0.00010958,2]
[336084353,1724693470798,-529.45,0.00010958,2]
[336084354,1724693470809,-500.0,0.00010958,2]
[336084355,1724693470821,-3259.27,0.00010958,2]
[336084356,1724693470837,-529.45,0.00010958,2]
[336084357,1724693470850,-500.0,0.00010958,2]
[336084358,1724693470864,-3259.27,0.00010958,2]
[336084359,1724693470878,-3259.27,0.00010958,2]
[336084360,1724693470891,-3259.27,0.00010958,2]
[336084361,1724693470902,-3259.27,0.00010958,2]
[336084362,1724693470915,-3259.27,0.00010958,2]
[336084363,1724693470927,-1561.73,0.00010958,2]
[336084364,1724693470941,-3259.27,0.00010958,2]
[336084365,1724693470953,-1561.73,0.00010958,2]
[336084366,1724693470965,-3259.27,0.00010958,2]
[336084367,1724693470980,-500.0,0.00010958,2]
[336084368,1724693470992,-1561.73,0.00010958,2]
[336084369,1724693471005,-500.0,0.00010958,2]
[336084370,1724693471018,-1561.73,0.00010958,2]
[336084371,1724693471030,-3259.27,0.00010958,2]
[336084372,1724693471042,-500.0,0.00010958,2]
[336084373,1724693471054,-1561.73,0.00010958,2]
[336084374,1724693471066,-3259.27,0.00010958,2]
[336084375,1724693471079,-500.0,0.00010958,2]
[336084376,1724693471091,-1561.73,0.00010958,2]
[336084377,1724693471102,-3259.27,0.00010958,2]
[336084378,1724693471114,-1561.73,0.00010958,2]
[336084379,1724693471126,-500.0,0.00010958,2]
[336084380,1724693471138,-3259.27,0.00010958,2]
[336084381,1724693471155,-500.0,0.00010958,2]
[336084382,1724693471167,-1561.73,0.00010958,2]
[336084383,1724693471179,-3259.27,0.00010958,2]
[336084384,1724693471191,-406.51,0.00010958,2]
[336084385,1724693471204,-1561.73,0.00010958,2]
[336084386,1724693471216,-1561.73,0.00010958,2]
[336084387,1724693471231,-1561.73,0.00010958,2]
[336084388,1724693471243,-1561.73,0.00010958,2]
[336084389,1724693471256,-1561.73,0.00010958,2]
[336084390,1724693471268,-1561.73,0.00010958,2]
[336084391,1724693471279,-500.0,0.00010958,2]
[336084392,1724693471292,-797.28,0.00010958,2]
[336084393,1724693471305,-1561.73,0.00010958,2]
[336084394,1724693471319,-500.0,0.00010958,2]
[336084395,1724693471331,-797.28,0.00010958,2]
[336084396,1724693471344,-1561.73,0.00010958,2]
[336084397,1724693471356,-500.0,0.00010958,2]
[336084398,1724693471369,-797.28,0.00010958,2]
[336084399,1724693471382,-500.0,0.00010958,2]
[336084400,1724693471396,-865.759799,0.00010958,2]
[336084401,1724693472608,-306.09729367,0.00010958,2]
[336084402,1724693472621,-389.87290733,0.00010958,2]
[336084403,1724693472633,-363.96356569,0.00010958,2]
[336084404,1724693473189,-136.03643431,0.00010958,2]
[336084405,1724693473198,-227.38856617,0.00010958,2]
[336084406,1724693473209,-569.89143383,0.00010958,2]
[336084407,1724693473219,-438.20742717,0.00010958,2]
[336084408,1724693473507,-234.55257283,0.00010958,2]
[336084409,1724693473517,-500.0,0.00010958,2]
[336084410,1724693473527,-500.0,0.00010958,2]
[336084411,1724693473536,-797.28,0.00010958,2]
[336084412,1724693473545,-672.76,0.00010958,2]
[336084413,1724693473555,-569.42349103,0.00010958,2]
[336084414,1724693655636,300.84,8.219e-05,2]
[336084415,1724693737654,737.6,9.966e-05,2]
[336084416,1724693738759,737.6,9.966e-05,2]
[336084417,1724693854906,215.84,9.951e-05,2]
[336084418,1724693949280,159.28794724,0.00010009,2]
[336084419,1724693957253,155.0,0.00010009,2]
[336084420,1724694166803,301.65,8.219e-05,2]
[336084421,1724694216792,298.88080064,9.962e-05,2]
[336084422,1724694235643,155.0,9.962e-05,2]
[336084436,1724694442550,1050.0,0.0001,2]
[336084439,1724694490074,35748.21411799,0.00010009,2]
[336084440,1724694498477,227.32,9.919e-05,2]
[336084501,1724694629222,155.0,0.00010009,2]
[336084533,1724694631588,-631.66792316,0.00010026,2]
[336084534,1724694631601,-155.0,0.00010097,2]
[336084535,1724694631611,-155.0,0.00010471,2]
[336084536,1724694631621,-42.74183735,0.00010473,2]
[336084537,1724694631632,-258.90816265,0.00010473,2]
[336084538,1724694631642,-441.09183735,0.00010651,2]
[336084539,1724694631653,-494.33663641,0.00010651,2]
[336084540,1724694631665,-44.1931347,0.00010651,2]
[336084541,1724694631674,-979.62160846,0.00010652,2]
[336084542,1724694631683,-150.0,0.00010751,2]
[336084543,1724694631692,-300.0,0.00010751,2]
[336084544,1724694631703,-257.47030681,0.00010751,2]
[336084545,1724694631714,-42.52969319,0.00010751,2]
[336084546,1724694631727,-183.97398846,0.00010752,2]
[336084547,1724694631737,-774.57540763,0.00010752,2]
[336084548,1724694631753,-625.93761542,0.00010752,2]
[336084549,1724694631764,-628.4461735,0.00010752,2]
[336084550,1724694631776,-329.14260328,0.00010752,2]
[336084551,1724694631787,-289.39815061,0.00010752,2]
[336084601,1724694637567,-600.0,0.00010752,2]
[336084602,1724694637580,-51015.30124956,0.00010752,2]
[336084603,1724694637589,-152.79080492,0.00010758,2]
[336084604,1724694637599,-682.23,0.00010779,2]
[336084605,1724694637610,-150.78,0.00010842,2]
[336084606,1724694637620,-24520.21896996,0.00010849,2]
[336084607,1724694637629,-2664.13021,0.0001085,2]
[336084608,1724694637638,-1089.55055981,0.00010851,3]
[336084609,1724694637648,-154189.99821575,0.00010852,2]
[336084610,1724694637659,-29998.168925,0.00010852,2]
[336084611,1724694637679,-544.01346895,0.00010852,2]
[336084612,1724694637695,-464.49215407,0.00010852,2]
[336084613,1724694637706,-805.98015679,0.00010852,2]
[336084614,1724694637718,-44923.16959173,0.00010852,2]
[336084615,1724694637730,-713.52089121,0.00010852,2]
[336084616,1724694637752,-282.04696975,0.00010852,2]
[336084617,1724694637764,-566.76354058,0.00010852,2]
[336084618,1724694637787,-5411.50495454,0.00010852,2]
[336084619,1724694637842,-5397.79999995,0.00010852,2]
[336084620,1724694637854,-23354.9760548,0.00010852,2]
[336084621,1724694637864,-285.49172499,0.00010852,2]
[336084622,1724694637876,-656.28348442,0.00010852,2]
[336084623,1724694637904,-517.79813017,0.00010852,2]
[336084624,1724694637915,-6413.00502823,0.00010852,2]
[336084625,1724694637927,-487.35926853,0.00010852,2]
[336084766,1724694639617,-21580.0,0.00010852,2]
[336084768,1724694639629,-566.7453937,0.00010852,2]
[336084781,1724694639747,-2242.35735466,0.00010852,2]
[336085069,1724694642685,-2111.23078142,0.00010852,2]
[336085072,1724694642696,-2575.05959001,0.00010852,2]
[336085075,1724694642708,-414.4410234,0.00010852,2]
[336085089,1724694642811,-1922.61,0.00010852,2]
[336085091,1724694642823,-2775.89751232,0.00010852,2]
[336085094,1724694642834,-3408.16965506,0.00010852,2]
[336085096,1724694642845,-1345.2272652,0.00010852,2]
[336085100,1724694642875,-1377.48320978,0.00010852,2]
[336085102,1724694642886,-12898.14077541,0.00010852,2]
[336085104,1724694642898,-2841.61796075,0.00010852,2]
[336085111,1724694642950,-2700.00000001,0.00010852,2]
[336085113,1724694642961,-543.43566378,0.00010852,2]
[336085115,1724694642972,-115330.45448045,0.00010852,2]
[336085120,1724694643016,-781676.40124165,0.00010852,2]
[336085134,1724694643143,-1740.63,0.00010418,2]
[336085315,1724694645574,-357.44552708,0.00010418,2]
[336085316,1724694645585,-429.26568358,0.00010418,2]
[336085328,1724694645689,-2722.65878934,0.00010418,2]
[336085329,1724694645699,-3669.24121066,0.00010852,2]
[336085330,1724694645752,-6346.34000001,0.00010852,2]
[336085331,1724694645815,-676.60000001,0.00010852,2]
[336086290,1724694689925,287.09,8.219e-05,2]
[336086291,1724694785055,1000.0,9.962e-05,2]
[336086292,1724694949400,9706.94527594,0.00017,90]
[336086564,1724695069887,218.14,9.955e-05,2]
[336086565,1724695124853,267.62734303,0.00010009,2]
[336086567,1724695227502,288.82,8.219e-05,2]
[336086568,1724695250587,943.55,9.934e-05,2]
[336086569,1724695259568,200.0,9.925e-05,2]
[336086570,1724695288399,272.23,9.929e-05,2]
[336086571,1724695292428,250.19624426,0.00010009,2]
[336086572,1724695442131,314.91,9.928e-05,2]
[336086575,1724695542147,529.9,9.928e-05,2]
[336086576,1724695561669,218.16,9.92e-05,2]
[336086577,1724695593266,2149.14529019,0.00010009,2]
[336086586,1724695643757,183.2,0.00010011,2]
[336086602,1724695766815,840.0,9.907e-05,2]
[336086608,1724695772658,250.0,9.907e-05,2]
[336086609,1724695817175,1781.28071201,0.00010009,2]
[336086621,1724695831913,-1119.22306195,0.00010221,2]
[336086622,1724695831922,-1119.22306194,0.00010316,2]
[336086623,1724695831932,-3284.640274,0.00010321,2]
[336086624,1724695831942,-26.91360211,0.00010416,2]
[336086640,1724695838010,-362.3963468,0.00010416,2]
[336086643,1724695840023,-565.29840805,0.00010416,2]
[336086644,1724695840036,-225.00861794,0.00010416,2]
[336086645,1724695840045,-155.0,0.00010471,2]
[336086646,1724695840055,-288.82,0.00010473,2]
[336086647,1724695840064,-155.0,0.00010505,2]
[336086648,1724695840073,-150.0,0.00010684,2]
[336086649,1724695840083,-1897.0,0.00010684,2]
[336086650,1724695840094,-552.0,0.00010684,2]
[336086651,1724695840103,-713.9,0.000107,2]
[336086652,1724695840112,-2500.0,0.0001074,2]
[336086653,1724695840121,-150.0,0.00010751,2]
[336086654,1724695840131,-8948.38980893,0.00010752,2]
[336086889,1724695843241,-1612.63548525,0.00010752,2]
[336087133,1724695845795,-671.7,0.00010752,2]
[336088931,1724695900874,154.5,9.82e-05,2]
[336088934,1724695949194,290.7,8.219e-05,2]
[336088936,1724696175377,225.48,9.788e-05,2]
[336088937,1724696210158,155.00000006,9.962e-05,2]
[336088938,1724696234684,882.69,9.788e-05,2]
[336088939,1724696244959,1050.0,0.0001,2]
[336088940,1724696280699,328.0,9.79e-05,2]
[336088941,1724696486688,290.81,8.219e-05,2]
[336088942,1724696520046,650.89584616,0.00010009,2]
[336088943,1724696537260,328.92802902,0.00010009,2]
[336088944,1724696716021,219.61,9.777e-05,2]
[336088946,1724696773428,3030.68,9.773e-05,2]
[336088947,1724696791334,303.90593034,0.00010009,2]
[336088948,1724696813456,3418.52376173,0.00010009,2]
[336089031,1724697032043,-219.80793522,0.00010021,2]
[336089032,1724697032053,-155.0,0.00010026,2]
[336089033,1724697032063,-355.77669654,0.00010026,2]
[336089034,1724697032072,-2202.8209587,0.00010121,2]
[336089035,1724697032131,-1262.29595931,0.00010121,2]
[336089036,1724697032150,-970.75378337,0.00010121,2]
[336089037,1724697032161,-141.11669862,0.00010121,2]
[336089038,1724697032171,-460.1886,0.00010316,2]
[336089039,1724697032180,-300.0,0.00010415,2]
[336089040,1724697032190,-1229.14455426,0.00010416,2]
[336089041,1724697032201,-827.13712285,0.00010416,2]
[336089042,1724697032244,-825.40068476,0.00010416,2]
[336089043,1724697032255,-590.71338148,0.00010416,2]
[336089044,1724697032328,-1344.78568796,0.00010416,2]
[336089045,1724697032340,-5182.81856869,0.00010416,2]
[336089046,1724697032353,-290.81,0.00010465,2]
[336089048,1724697032362,-157.74999108,0.00010471,2]
[336089050,1724697032373,-348.14564579,0.00010471,2]
[336089051,1724697032383,-189.64036588,0.00010471,2]
[336089052,1724697032396,-179.53320108,0.00010471,2]
[336089088,1724697038055,-10000.0,0.00010416,2]
[336089089,1724697038065,-75.85871255,0.00010471,2]
[336089091,1724697038075,-155.0,0.00010471,2]
[336089092,1724697038084,-155.46554055,0.00010505,2]
[336089093,1724697038095,-175.02110761,0.00010566,2]
[336089094,1724697038105,-150.0,0.0001062,2]
[336089095,1724697038115,-1500.0,0.00010638,2]
[336089096,1724697038124,-1419.12826125,0.0001064,2]
[336089097,1724697038136,-1279.7631426,0.0001064,2]
[336089098,1724697038152,-301.10859615,0.0001064,2]
[336089099,1724697038162,-150.0,0.00010652,2]
[336089100,1724697038171,-150.0,0.00010683,2]
[336089101,1724697038182,-150.0,0.00010684,2]
[336089102,1724697038192,-150.0,0.00010684,2]
[336089103,1724697038202,-150.0,0.00010684,2]
[336089104,1724697038211,-150.0,0.00010691,2]
[336089105,1724697038221,-150.0,0.00010692,2]
[336089106,1724697038232,-150.0,0.00010696,2]
[336089107,1724697038242,-150.0,0.00010697,2]
[336089108,1724697038251,-155.0,0.00010699,2]
[336089109,1724697038261,-524.25987859,0.00010699,2]
[336089110,1724697038271,-150.0,0.000107,2]
[336089111,1724697038281,-941.07,0.000107,2]
[336089112,1724697038293,-150.0,0.00010701,2]
[336089113,1724697038303,-1500.0,0.00010701,2]
[336089114,1724697038313,-1500.0,0.00010713,2]
[336089115,1724697038323,-717.07283745,0.0001072,2]
[336089116,1724697038333,-150.0,0.00010721,2]
[336089117,1724697038348,-150.0,0.00010723,2]
[336089118,1724697038359,-150.0,0.00010723,2]
[336089119,1724697038368,-150.0,0.00010726,2]
[336089120,1724697038378,-150.0,0.00010728,2]
[336089121,1724697038389,-150.0,0.00010728,2]
[336089122,1724697038398,-226.2741535,0.0001073,2]
[336089123,1724697038408,-150.0,0.00010731,2]
[336089124,1724697038419,-150.0,0.00010732,2]
[336089125,1724697038429,-150.0,0.00010733,2]
[336089126,1724697038439,-150.0,0.00010734,2]
[336089127,1724697038449,-150.0,0.00010738,2]
[336089128,1724697038459,-150.0,0.00010741,2]
[336089129,1724697038469,-150.0,0.00010747,2]
[336089130,1724697038479,-150.0,0.0001075,2]
[336089131,1724697038488,-150.0,0.00010752,2]
[336089132,1724697038498,-200.0,0.00010752,2]
[336089134,1724697038508,-496.4605,0.00010752,2]
[336089136,1724697038518,-13308.0887,0.00010752,2]
[336089138,1724697038527,-178.8011,0.00010752,2]
[336089140,1724697038537,-1000.0,0.00010752,2]
[336089142,1724697038546,-150.0,0.00010755,2]
[336089144,1724697038555,-150.0,0.0001076,2]
[336089146,1724697038565,-150.0,0.00010764,2]
[336089147,1724697038574,-150.0,0.00010766,2]
[336089150,1724697038585,-150.0,0.00010775,2]
[336089152,1724697038595,-150.0,0.00010777,2]
[336089153,1724697038604,-1031.62027844,0.0001078,2]
[336089155,1724697038614,-15521.7958175,0.0001078,2]
[336089157,1724697038625,-150.0,0.00010786,2]
[336089159,1724697038636,-150.0,0.00010791,2]
[336089161,1724697038646,-150.0,0.00010792,2]
[336089163,1724697038656,-150.0,0.00010793,2]
[336089165,1724697038666,-150.0,0.00010796,2]
[336089167,1724697038676,-150.0,0.00010799,2]
[336089169,1724697038686,-150.0,0.000108,2]
[336089171,1724697038696,-421.62,0.000108,2]
[336089173,1724697038705,-357.01,0.000108,2]
[336089175,1724697038716,-300.0,0.000108,2]
[336089177,1724697038726,-150.0,0.000108,2]
[336089179,1724697038736,-150.0,0.000108,2]
[336089181,1724697038747,-791.05,0.000108,2]
[336089183,1724697038758,-150.0,0.000108,2]
[336089185,1724697038767,-791.05,0.000108,2]
[336089187,1724697038777,-421.62,0.000108,2]
[336089189,1724697038787,-531.71,0.000108,2]
[336089191,1724697038798,-531.71,0.000108,2]
[336089193,1724697038807,-421.62,0.000108,2]
[336089195,1724697038817,-791.05,0.000108,2]
[336089197,1724697038828,-150.0,0.000108,2]
[336089199,1724697038838,-1492.98958919,0.00010801,2]
[336089201,1724697038848,-150.0,0.00010808,2]
[336089202,1724697038858,-150.0,0.00010812,2]
[336089204,1724697038868,-150.0,0.00010812,2]
[336089206,1724697038878,-150.0,0.00010812,2]
[336089209,1724697038888,-150.0,0.00010812,2]
[336089210,1724697038897,-150.0,0.00010815,2]
[336089212,1724697038907,-150.0,0.00010821,2]
[336089214,1724697038917,-150.0,0.00010825,2]
[336089216,1724697038927,-150.0,0.0001083,2]
[336089218,1724697038936,-150.0,0.00010832,2]
[336089220,1724697038948,-150.0,0.00010835,2]
[336089222,1724697038959,-150.0,0.00010837,2]
[336089224,1724697038969,-243.9973009,0.00010838,2]
[336089226,1724697038980,-150.0,0.00010839,2]
[336089228,1724697038990,-150.0,0.0001084,2]
[336089230,1724697039000,-150.0,0.0001084,2]
[336089232,1724697039010,-150.78,0.00010842,2]
[336089233,1724697039020,-150.0,0.00010846,2]
[336089235,1724697039030,-1500.0,0.00010847,2]
[336089237,1724697039041,-1031.54405098,0.00010851,3]
[336089239,1724697039050,-822.0,0.00010852,2]
[336089241,1724697039060,-76852.8471164,0.00010852,2]
[336089244,1724697039074,-2538.70532351,0.00010852,2]
[336089246,1724697039087,-815.0,0.00010852,2]
[336089251,1724697039127,-599.2800009,0.00010852,2]
[336089253,1724697039138,-288.44236295,0.00010852,2]
[336089255,1724697039151,-39019.70509522,0.00010852,2]
[336089257,1724697039163,-69561.41082098,0.00010852,2]
[336089260,1724697039175,-574.98736815,0.00010852,2]
[336089276,1724697039332,-8083.76323544,0.00010416,2]
[336089354,1724697040131,-284.0,0.00010416,2]
[336089360,1724697040179,-49.29212599,0.00010416,2]
[336089362,1724697040189,-208.47219017,0.00010852,2]
[336089365,1724697040201,-7489.87726407,0.00010852,2]
[336089367,1724697040212,-1125.95213341,0.00010852,2]
[336089369,1724697040224,-9917.94350121,0.00010852,2]
[336089371,1724697040236,-30941.25574525,0.00010852,2]
[336089624,1724697043000,-169846.65445475,0.00010852,2]
[336089664,1724697043337,-517.3092,0.00010852,2]
[336089667,1724697043352,-5921.71006796,0.00010852,2]
[336089670,1724697043363,-6002.69289367,0.00010852,2]
[336089673,1724697043374,-2000.0,0.00010852,2]
[336089676,1724697043386,-819.45729106,0.00010852,2]
[336089680,1724697043397,-1064.4559759,0.00010852,2]
[336089685,1724697043437,-363.40774827,0.00010852,2]
[336089690,1724697043466,155.0,0.00010009,2]
[336089752,1724697044053,-470.19857986,0.00010852,2]
[336089754,1724697044064,-22528.8526588,0.00010852,2]
[336089757,1724697044075,-5130.95572728,0.00010852,2]
[336089759,1724697044086,-877.60613837,0.00010852,2]
[336089761,1724697044097,-650.23939639,0.00010852,2]
[336089763,1724697044108,-498.7999998,0.00010852,2]
[336089765,1724697044118,-2721.87978134,0.00010852,2]
[336089767,1724697044129,-4650.0,0.00010852,2]
[336089770,1724697044140,-432595.9098662,0.00010852,2]
[336089773,1724697044161,-666.41,0.00010852,2]
[336089775,1724697044172,-8292.31930921,0.00010852,2]
[336089777,1724697044183,-1381.28,0.00010852,2]
[336089779,1724697044194,-1656.16099867,0.00010852,2]
[336089782,1724697044204,-1039.9999,0.00010852,2]
[336089784,1724697044215,-1448.63415379,0.00010852,2]
[336089786,1724697044226,-5453.45619711,0.00010852,2]
[336089789,1724697044241,-1951.24999987,0.00010852,2]
[336089791,1724697044252,-14700.83896024,0.00010852,2]
[336089793,1724697044263,-3953.81927455,0.00010852,2]
[336089795,1724697044274,-31825.75774442,0.00010852,2]
[336089797,1724697044285,-1507.29,0.00010852,2]
[336089800,1724697044304,-711.66079676,0.00010852,2]
[336089965,1724697046031,-286.82141959,0.00010416,2]
[336089967,1724697046043,-4138.32879217,0.00010416,2]
[336089969,1724697046056,-25849.253528,0.00010852,2]
[336089971,1724697046067,-508.86299617,0.00010852,2]
[336089978,1724697046120,-3888.80813399,0.00010852,2]
[336089981,1724697046132,-5360.8,0.00010852,2]
[336089983,1724697046143,-5917.9735355,0.00010852,2]
[336089991,1724697046210,-3604.75092635,0.00010852,2]
[336089994,1724697046228,-1594.04116769,0.00010852,2]
[336091001,1724697056541,261.72,8.219e-05,2]
[336093285,1724697083761,231.75,9.571e-05,2]
[336093289,1724697214341,1000.0,9.625e-05,2]
[336093290,1724697392510,219.64,9.621e-05,2]
[336093291,1724697517490,440.02330588,0.00010009,2]
[336093292,1724697521058,531.39122984,0.00010009,2]
[336093293,1724697552567,263.62,8.219e-05,2]
[336093295,1724697708880,200.0,9.725e-05,2]
[336093296,1724697709120,155.44784194,9.962e-05,2]
[336093297,1724697758016,211.25763807,0.0001,2]
[336093331,1724698115318,155.61945661,0.00010009,2]
[336093333,1724698115474,250.43,8.219e-05,2]
[336093371,1724698166113,224.31,9.718e-05,2]
[336093394,1724698232214,-157.20975065,0.00010019,2]
[336093395,1724698232224,-150.0,0.00010119,2]
[336093396,1724698232233,-300.0,0.00010119,2]
[336093397,1724698232242,-300.0,0.00010119,2]
[336093398,1724698232252,-1518.35935795,0.0001012,2]
[336093399,1724698232281,-3300.0,0.0001012,2]
[336093400,1724698232320,-988.81762048,0.0001012,2]
[336093401,1724698232333,-3498.10131452,0.0001012,2]
[336093403,1724698232490,-871.5527439,0.0001012,2]
[336093405,1724698232501,-2737.33492461,0.0001012,2]
[336093407,1724698232513,-1368.4452503,0.0001012,2]
[336093429,1724698238570,-1244.71758328,0.0001002,2]
[336093430,1724698238581,-824.21069674,0.0001002,2]
[336093431,1724698238593,-514.90496673,0.0001002,2]
[336093535,1724698240502,-1849.6402047,0.0001002,2]
[336093537,1724698240514,-6018.98754855,0.0001002,2]
[336093539,1724698240524,-29730.96760343,0.0001012,2]
[336093541,1724698240534,-1280.85935795,0.0001012,2]
[336093543,1724698240543,-10000.0,0.00010379,2]
[336093545,1724698240553,-250.43,0.00010461,2]
[336093547,1724698240563,-162.27320771,0.00010471,2]
[336093549,1724698240573,-155.20601412,0.00010505,2]
[336093551,1724698240583,-150.0,0.00010545,2]
[336093553,1724698240593,-150.0,0.00010565,2]
[336093555,1724698240603,-155.0,0.00010566,2]
[336093557,1724698240614,-150.0,0.0001058,2]
[336093559,1724698240624,-1568.86,0.0001058,2]
[336093561,1724698240634,-1500.0,0.00010586,2]
[336093563,1724698240643,-150.0,0.00010587,2]
[336093565,1724698240652,-150.0,0.00010591,2]
[336093567,1724698240661,-150.0,0.00010597,2]
[336093569,1724698240671,-150.0,0.00010598,2]
[336093571,1724698240681,-150.0,0.00010599,2]
[336093573,1724698240691,-150.0,0.00010602,2]
[336093575,1724698240701,-150.0,0.00010603,2]
[336093577,1724698240712,-150.0,0.00010609,2]
[336093579,1724698240722,-150.0,0.0001061,2]
[336093581,1724698240731,-150.0,0.00010616,2]
[336093583,1724698240741,-150.0,0.00010626,2]
[336093585,1724698240753,-1500.0,0.00010628,2]
[336093587,1724698240763,-150.0,0.00010633,2]
[336093589,1724698240772,-150.0,0.00010635,2]
[336093591,1724698240783,-159.764,0.00010635,2]
[336093593,1724698240793,-150.0,0.00010637,2]
[336093595,1724698240803,-150.0,0.00010638,2]
[336093597,1724698240812,-150.0,0.00010648,2]
[336093599,1724698240822,-150.0,0.00010649,2]
[336093601,1724698240834,-150.0,0.00010651,2]
[336093603,1724698240843,-150.0,0.00010652,2]
[336093605,1724698240853,-150.0,0.00010655,2]
[336093607,1724698240863,-150.0,0.00010662,2]
[336093608,1724698240873,-150.0,0.00010672,2]
[336093610,1724698240882,-150.0,0.00010673,2]
[336093612,1724698240892,-1500.0,0.00010691,2]
[336093614,1724698240901,-150.0,0.00010695,2]
[336093616,1724698240911,-150.0,0.00010699,2]
[336093618,1724698240920,-155.0,0.00010699,2]
[336093620,1724698240929,-842.88,0.000107,2]
[336093622,1724698240939,-791.05,0.000107,2]
[336093624,1724698240948,-421.34,0.000107,2]
[336093626,1724698240958,-531.26,0.000107,2]
[336093628,1724698240970,-791.05,0.000107,2]
[336093630,1724698240979,-150.0,0.00010705,2]
[336093632,1724698240989,-150.0,0.00010716,2]
[336093634,1724698240998,-150.0,0.00010719,2]
[336093636,1724698241007,-150.0,0.00010722,2]
[336093638,1724698241017,-162.72754223,0.00010727,2]
[336093640,1724698241027,-1500.0,0.00010732,2]
[336093642,1724698241036,-150.0,0.00010734,2]
[336093644,1724698241046,-1500.0,0.00010736,2]
[336093646,1724698241055,-150.0,0.00010737,2]
[336093648,1724698241065,-150.0,0.00010739,2]
[336093650,1724698241075,-150.0,0.00010741,2]
[336093652,1724698241085,-183.78004166,0.00010742,2]
[336093654,1724698241094,-21018.1201,0.00010752,2]
[336093655,1724698241104,-2819.6782,0.00010752,2]
[336093657,1724698241113,-1436.5341,0.00010752,2]
[336093659,1724698241122,-9967.7323,0.00010752,2]
[336093661,1724698241131,-150.0,0.00010763,2]
[336093663,1724698241142,-150.0,0.00010765,2]
[336093665,1724698241151,-150.0,0.00010766,2]
[336093667,1724698241161,-1500.0,0.00010768,2]
[336093669,1724698241170,-150.0,0.00010776,2]
[336093671,1724698241180,-150.0,0.00010781,2]
[336093673,1724698241189,-150.0,0.00010782,2]
[336093675,1724698241198,-224.07617914,0.00010782,2]
[336093677,1724698241208,-150.0,0.00010788,2]
[336093679,1724698241220,-150.0,0.00010789,2]
[336093681,1724698241230,-150.0,0.00010789,2]
[336093683,1724698241239,-1500.0,0.00010791,2]
[336093685,1724698241248,-150.0,0.00010791,2]
[336093687,1724698241258,-150.0,0.00010792,2]
[336093689,1724698241268,-1500.0,0.00010802,2]
[336093691,1724698241278,-150.0,0.00010803,2]
[336093693,1724698241287,-150.0,0.00010804,2]
[336093695,1724698241297,-150.0,0.00010808,2]
[336093697,1724698241306,-150.0,0.00010809,2]
[336093699,1724698241316,-150.0,0.00010814,2]
[336093701,1724698241325,-1500.0,0.00010816,2]
[336093703,1724698241335,-1500.0,0.00010827,2]
[336093705,1724698241345,-1000.0,0.00010829,2]
[336093707,1724698241355,-1453.33952092,0.00010833,2]